bitfinex-derivatives/quotes_BNBF0:USTF0_20250603
["timestamp","ask_amount","ask_price","bid_price","bid_amount"]
[1748978196962,0.99664021,664.5,664.49,0.3009827]
[1748978199768,0.9968616,664.5,664.49,0.3009827]
[1748978203672,1.49847911,664.88,664.49,0.3009827]
[1748978203866,3.747906,665.61,664.49,0.3009827]
[1748978203867,1.1256847,664.75,664.72,0.47882727]
[1748978204069,0.99729182,664.74,664.72,0.47882727]
[1748978204265,3.747906,665.63,664.72,0.47882727]
[1748978204266,0.99727168,664.73,664.72,0.47882727]
[1748978205167,0.99727168,664.73,664.71,0.47882727]
[1748978205373,0.99727168,664.72,664.71,0.47882727]
[1748978205971,0.99727168,664.72,664.7,0.47882727]
[1748978206165,0.99727168,664.71,664.7,0.47882727]
[1748978206572,0.99727168,664.71,664.52,0.47851098]
[1748978206772,0.99727168,664.7,664.53,0.30096459]
[1748978207069,0.99727168,664.69,664.53,0.77947557]
[1748978207272,1.1256847,664.74,664.53,0.77947557]
[1748978207273,0.99727168,664.68,664.53,0.30096459]
[1748978207469,0.99727168,664.67,664.53,0.30096459]
[1748978207666,0.99663915,664.66,664.53,0.30096459]
[1748978207869,0.99663915,664.65,664.62,0.47851098]
[1748978208073,0.77296851,664.64,664.62,0.47851098]
[1748978208269,1.12563654,664.73,664.61,0.47851098]
[1748978208573,1.12563654,664.73,664.53,0.30096459]
[1748978208574,1.12563654,664.73,664.58,0.47851098]
[1748978209176,1.12563654,664.73,664.53,0.30096459]
[1748978209177,1.12563654,664.73,664.57,0.47851098]
[1748978211770,1.12580136,664.73,664.57,0.47851098]
[1748978212274,1.12580136,664.73,664.56,0.47851098]
[1748978212575,1.12580136,664.72,664.56,0.47851098]
[1748978212770,1.12580136,664.73,664.57,0.47851098]
[1748978213070,1.12580136,664.73,664.56,0.47851098]
[1748978213878,1.49847911,664.84,664.53,0.30096459]
[1748978213879,1.12580136,664.72,664.61,0.47851098]
[1748978214577,1.12580136,664.72,664.54,0.39146234]
[1748978214578,1.12580136,664.72,664.6,0.47851098]
[1748978214773,1.12580136,664.72,664.61,0.47851098]
[1748978214978,1.12580136,664.72,664.62,0.47851098]
[1748978215777,1.49847911,664.83,664.62,0.47851098]
[1748978215977,3.747906,665.38,664.64,0.47851098]
[1748978215978,1.12587652,664.71,664.64,0.47851098]
[1748978216373,1.12587652,665.11,664.65,0.30091025]
[1748978216579,1.12587652,665.1,664.8,0.47812454]
[1748978216780,1.12587652,665.1,664.76,0.47812454]
[1748978216979,1.12587652,665.1,664.76,0.778985]
[1748978217174,1.12587652,665.14,664.76,0.30086046]
[1748978218179,1.12587652,665.15,664.76,0.30086046]
[1748978218379,1.12587652,665.14,664.76,0.30086046]
[1748978218575,1.12587652,665.11,664.76,0.30086046]
[1748978218875,1.12587652,665.1,664.76,0.30086046]
[1748978219281,1.12587652,665.11,664.76,0.30086046]
[1748978219681,1.49847911,665.27,664.76,0.30086046]
[1748978219882,1.12322108,665.11,664.76,0.30086046]
[1748978220083,0.99254016,665.1,664.76,0.30086046]
[1748978220381,1.12322108,665.08,664.76,0.30086046]
[1748978220576,0.9925517,665.07,664.76,0.30086046]
[1748978220780,1.12322993,665.08,664.76,0.30086046]
[1748978220781,0.9925517,665.06,664.76,0.30086046]
[1748978221078,0.9925517,665.05,664.76,0.778985]
[1748978221280,0.9925517,665.04,664.76,0.30086046]
[1748978221478,0.9925517,665.03,664.76,0.30086046]
[1748978221682,0.9925517,665.02,664.76,0.30086046]
[1748978221877,0.9925517,665.01,664.76,0.30086046]
[1748978222082,0.9925517,665.0,664.76,0.30086046]
[1748978222281,0.99200899,664.99,664.76,0.30086046]
[1748978222482,0.99200899,664.98,664.76,0.30086046]
[1748978222681,1.12261665,665.09,664.76,0.30086046]
[1748978222682,0.99200899,664.97,664.76,0.30086046]
[1748978222882,0.99200899,664.96,664.76,0.30086046]
[1748978223078,0.99200899,664.95,664.76,0.30086046]
[1748978223279,0.99200899,664.94,664.76,0.30086046]
[1748978223483,0.99200899,664.93,664.76,0.30086046]
[1748978223679,0.99200899,664.92,664.76,0.30086046]
[1748978223985,0.99200899,664.91,664.76,0.30086046]
[1748978224185,0.99200899,664.9,664.76,0.30086046]
[1748978224386,0.99200899,664.89,664.76,0.30086046]
[1748978224585,0.99200899,664.88,664.76,0.30086046]
[1748978224884,0.99200899,664.87,664.76,0.30086046]
[1748978225086,1.12261665,665.07,664.76,0.30086046]
[1748978225087,0.99200899,664.86,664.76,0.30086046]
[1748978225285,0.99200899,664.85,664.76,0.30086046]
[1748978225481,0.99200899,664.84,664.76,0.30086046]
[1748978225685,0.99200899,664.83,664.76,0.30086046]
[1748978225885,0.99200899,664.82,664.76,0.30086046]
[1748978226081,0.99200899,664.81,664.76,0.30086046]
[1748978226282,1.49847911,665.21,664.76,0.30086046]
[1748978226481,1.12197882,665.07,664.76,0.30086046]
[1748978226685,0.99127967,665.06,664.76,0.30086046]
[1748978226885,0.99127967,665.05,664.76,0.30086046]
[1748978227088,0.99127967,665.04,664.76,0.30086046]
[1748978227386,0.99127967,665.03,664.76,0.30086046]
[1748978227584,0.99127967,665.02,664.76,0.30086046]
[1748978227783,0.99127967,665.01,664.76,0.30086046]
[1748978227986,0.99127967,665.0,664.76,0.30086046]
[1748978228186,0.99127967,664.99,664.76,0.30086046]
[1748978228387,0.99127967,664.98,664.76,0.30086046]
[1748978228589,0.99127967,664.97,664.76,0.30086046]
[1748978228782,0.99127967,664.96,664.76,0.30086046]
[1748978228989,0.99127967,664.95,664.76,0.30086046]
[1748978229189,0.99127967,664.94,664.76,0.30086046]
[1748978229391,0.99127967,664.93,664.76,0.30086046]
[1748978229587,0.99127967,664.92,664.76,0.30086046]
[1748978229783,0.99127967,664.91,664.76,0.30086046]
[1748978229990,0.99127967,664.9,664.76,0.30086046]
[1748978230190,1.49847911,665.28,664.76,0.30086046]
[1748978230391,1.1215359,665.12,664.76,0.30086046]
[1748978230584,0.99024238,665.11,664.76,0.30086046]
[1748978230785,0.99024238,665.1,664.76,0.30086046]
[1748978230988,0.99024238,665.09,664.76,0.30086046]
[1748978231185,0.99019252,665.08,664.76,0.30086046]
[1748978231487,0.99019252,665.07,664.76,0.30086046]
[1748978231691,0.99019252,665.06,664.76,0.30086046]
[1748978231896,0.99019252,665.05,664.76,0.30086046]
[1748978232090,0.99019252,665.04,664.76,0.30086046]
[1748978232293,0.99019252,665.03,664.76,0.30086046]
[1748978232492,0.99019252,665.02,664.76,0.30086046]
[1748978232696,0.99019252,665.01,664.76,0.30086046]
[1748978232897,1.12151725,665.12,664.76,0.30086046]
[1748978232898,0.99019252,665.0,664.76,0.30086046]
[1748978233198,0.99019252,664.99,664.76,0.30086046]
[1748978233392,3.747906,666.12,664.76,0.30086046]
[1748978233393,0.99019252,664.98,664.76,0.30086046]
[1748978233598,0.99019252,664.97,664.76,0.30086046]
[1748978233796,0.99019252,664.96,664.76,0.30086046]
[1748978233991,0.99019252,664.95,664.76,0.30086046]
[1748978234196,1.49847911,665.31,664.76,0.30086046]
[1748978234392,1.12113162,665.15,664.76,0.30086046]
[1748978234599,0.98985276,665.14,664.76,0.30086046]
[1748978234796,0.98985276,665.13,664.76,0.30086046]
[1748978235096,0.98985276,665.12,664.76,0.30086046]
[1748978235397,0.98985276,665.11,664.76,0.30086046]
[1748978235631,1.12113162,665.15,664.76,0.30086046]
[1748978235632,0.98985276,665.1,664.76,0.30086046]
[1748978235793,0.98985276,665.09,664.76,0.30086046]
[1748978235994,0.98985276,665.08,664.76,0.30086046]
[1748978236195,0.98985276,665.07,664.76,0.30086046]
[1748978236395,0.98985276,665.06,664.76,0.30086046]
[1748978236597,0.98985276,665.05,664.76,0.30086046]
[1748978236797,0.98985276,665.04,664.76,0.30086046]
[1748978237000,0.98985276,665.03,664.76,0.30086046]
[1748978237295,0.98985276,665.02,664.76,0.30086046]
[1748978237493,0.98985276,665.01,664.76,0.30086046]
[1748978237694,0.98985276,665.0,664.76,0.30086046]
[1748978237893,0.98985276,664.99,664.76,0.30086046]
[1748978238096,0.98985276,664.98,664.76,0.30086046]
[1748978238297,0.98985276,664.97,664.76,0.30086046]
[1748978238493,0.98985276,664.96,664.76,0.30086046]
[1748978238698,3.747906,666.24,664.76,0.30086046]
[1748978238699,0.98985276,664.95,664.76,0.778985]
[1748978238900,1.12113162,665.2,664.91,0.47812454]
[1748978239101,3.747906,666.25,664.91,0.47812454]
[1748978239102,0.98964438,665.19,664.91,0.47812454]
[1748978239400,0.98964438,665.19,664.76,0.30086046]
[1748978239401,0.98964438,665.18,664.86,0.47812454]
[1748978239606,3.747906,666.12,664.87,0.30081068]
[1748978239607,0.98964438,665.17,664.87,0.30081068]
[1748978239904,1.12113162,665.28,664.87,0.30081068]
[1748978239905,0.98964438,665.16,664.87,0.30081068]
[1748978240099,1.12113162,665.28,664.87,0.30081068]
[1748978240100,0.98964438,665.15,664.87,0.30081068]
[1748978240298,1.12113162,665.29,664.87,0.30081068]
[1748978240299,0.98964438,665.14,664.87,0.30081068]
[1748978240502,0.98964438,665.13,664.87,0.30081068]
[1748978240707,0.98964438,665.12,664.87,0.30081068]
[1748978241005,0.98964438,665.11,664.87,0.30081068]
[1748978241203,0.98964438,665.1,664.87,0.30081068]
[1748978241404,0.98964438,665.09,664.87,0.30081068]
[1748978241705,0.98964438,665.08,664.87,0.30081068]
[1748978241897,0.98964438,665.07,664.87,0.30081068]
[1748978242102,0.98574155,665.06,664.87,0.30081068]
[1748978242304,0.98574155,665.05,664.87,0.30081068]
[1748978242504,0.98574155,665.04,664.87,0.30081068]
[1748978242703,2.2487436,665.69,664.87,0.30081068]
[1748978242704,0.98574155,665.03,664.87,0.30081068]
[1748978242900,1.11980596,665.34,664.87,0.30081068]
[1748978243205,0.98544373,665.33,664.87,0.30081068]
[1748978243407,0.98544373,665.32,664.87,0.30081068]
[1748978243601,0.98544373,665.31,664.87,0.30081068]
[1748978243805,0.98544373,665.3,664.87,0.30081068]
[1748978244005,0.98544373,665.29,664.87,0.30081068]
[1748978244207,0.98544373,665.28,664.87,0.30081068]
[1748978244406,0.98544373,665.27,664.87,0.30081068]
[1748978244600,0.98544373,665.26,664.87,0.30081068]
[1748978244802,0.98544373,665.25,664.87,0.30081068]
[1748978245006,0.98544373,665.24,664.87,0.30081068]
[1748978245202,0.98544373,665.23,664.87,0.30081068]
[1748978245405,0.98544373,665.22,664.87,0.30081068]
[1748978245602,0.98544373,665.21,664.87,0.30081068]
[1748978245805,0.98610725,665.2,664.87,0.30081068]
[1748978246001,0.98610725,665.19,664.87,0.30081068]
[1748978246204,1.11903848,665.35,664.87,0.30081068]
[1748978246205,0.98610725,665.18,664.87,0.30081068]
[1748978246504,0.98610725,665.17,664.87,0.30081068]
[1748978246701,0.98610725,665.16,664.89,0.47812454]
[1748978246906,3.747906,666.26,664.21,0.47837085]
[1748978246907,0.98610725,665.15,664.9,0.30079711]
[1748978247107,0.98610725,665.14,664.9,0.30079711]
[1748978247309,0.98610725,665.13,664.9,0.30079711]
[1748978247606,0.98610725,665.12,664.9,0.30079711]
[1748978247907,1.11903848,665.28,664.9,0.30079711]
[1748978248208,1.11903848,665.28,665.2,0.47561687]
[1748978248408,1.11903848,665.28,665.18,0.47561687]
[1748978249407,1.11903848,665.28,665.2,0.47561687]
[1748978249811,1.11862092,665.28,665.2,0.47561687]
[1748978250108,1.11862092,665.28,665.19,0.47561687]
[1748978250307,1.11862092,665.28,665.21,0.47561687]
[1748978251306,1.11862092,665.29,665.25,0.47561687]
[1748978252110,1.11862092,665.28,665.25,0.47561687]
[1748978252304,1.11862092,665.28,665.24,0.47561687]
[1748978253209,1.11862092,665.28,665.23,0.47561687]
[1748978253510,1.11862092,665.29,665.23,0.47561687]
[1748978253709,1.49847911,665.41,665.23,0.47561687]
[1748978253910,1.11850805,665.29,665.23,0.47561687]
[1748978254104,1.11850805,665.28,665.23,0.47561687]
[1748978254911,1.49847911,665.41,665.23,0.47561687]
[1748978254912,1.11850805,665.29,665.23,0.47561687]
[1748978255111,1.11850805,665.28,665.23,0.47561687]
[1748978255711,1.11850805,665.29,665.23,0.47561687]
[1748978256206,1.11850805,665.35,664.92,0.47561687]
[1748978256412,1.11850805,665.35,664.93,0.30078354]
[1748978256614,1.11850805,665.34,664.93,0.77640041]
[1748978257607,1.11850805,665.34,664.94,0.47561687]
[1748978257905,1.11866087,665.34,664.94,0.47561687]
[1748978259315,1.11866087,665.34,664.93,0.77640041]
[1748978259816,0.98350167,665.33,664.94,0.47561687]
[1748978260012,0.98350167,665.32,664.94,0.47561687]
[1748978260314,0.98350167,665.31,664.94,0.47561687]
[1748978260514,0.98350167,665.3,664.94,0.47561687]
[1748978260715,0.98350167,665.29,664.94,0.47561687]
[1748978260911,0.98350167,665.28,664.94,0.47561687]
[1748978261117,0.98350167,665.27,664.94,0.47561687]
[1748978261313,0.98350167,665.26,664.93,0.77640041]
[1748978261517,0.98350167,665.25,664.93,0.77640041]
[1748978261715,0.98369312,665.24,664.93,0.77640041]
[1748978261918,0.98369312,665.23,664.93,0.77640041]
[1748978262120,0.98369312,665.22,664.93,0.77640041]
[1748978262313,1.11903095,665.34,664.93,0.77640041]
[1748978262314,0.98369312,665.21,664.93,0.77640041]
[1748978262515,0.98369312,665.2,664.93,0.77640041]
[1748978262717,0.98369312,665.19,664.93,0.77640041]
[1748978262921,0.98369312,665.18,664.93,0.30078354]
[1748978263115,1.49847911,665.52,664.93,0.30078354]
[1748978263116,0.98369312,665.17,664.93,0.77640041]
[1748978263318,1.11903095,665.37,664.94,0.47561687]
[1748978263319,0.98369312,665.16,664.94,0.47561687]
[1748978263519,0.98369312,665.15,664.95,0.30077449]
[1748978263723,0.98369312,665.14,664.95,0.30077449]
[1748978264018,0.98369312,665.13,664.95,0.30077449]
[1748978264222,0.98369312,665.12,664.95,0.30077449]
[1748978264422,0.98369312,665.11,664.95,0.30077449]
[1748978264624,0.98369312,665.1,664.95,0.30077449]
[1748978264920,0.98369312,665.09,664.95,0.77639136]
[1748978265121,1.11903095,665.38,664.95,0.77639136]
[1748978265319,0.97916963,665.37,664.95,0.77639136]
[1748978265520,1.49847911,665.54,664.95,0.77639136]
[1748978265721,1.1194639,665.38,664.95,0.77639136]
[1748978265924,0.97916963,665.37,665.18,0.47561687]
[1748978266224,1.1194639,665.33,665.18,0.47561687]
[1748978266424,0.97916963,665.32,665.18,0.47561687]
[1748978266621,0.97916963,665.31,665.18,0.47561687]
[1748978266822,0.97916963,665.3,665.18,0.47561687]
[1748978267016,0.97916963,665.29,665.18,0.47561687]
[1748978267222,0.97916963,665.28,665.18,0.47561687]
[1748978267423,0.97916963,665.27,665.18,0.47561687]
[1748978267623,1.1194639,665.33,665.18,0.47561687]
[1748978267624,0.97916963,665.26,665.18,0.47561687]
[1748978267828,0.97916963,665.25,665.18,0.47561687]
[1748978268022,0.97916963,665.24,665.18,0.47561687]
[1748978268225,0.97916963,665.23,665.19,0.47561687]
[1748978268425,3.747906,666.11,664.95,0.30077449]
[1748978268426,0.97916963,665.22,664.95,0.30077449]
[1748978268620,0.97916963,665.21,664.95,0.30077449]
[1748978268824,0.97916963,665.2,664.95,0.30077449]
[1748978269021,0.97916963,665.19,664.95,0.30077449]
[1748978269223,0.97916963,665.18,665.17,0.47661481]
[1748978269424,0.97916963,665.18,664.95,0.30077449]
[1748978269621,0.97992762,665.17,664.95,0.30077449]
[1748978269826,0.97992762,665.16,664.95,0.30077449]
[1748978270027,0.97992762,665.15,664.95,0.30077449]
[1748978270227,0.97992762,665.14,664.95,0.30077449]
[1748978270427,0.97992762,665.13,664.95,0.30077449]
[1748978270624,0.97992762,665.12,664.95,0.30077449]
[1748978270929,0.97992762,665.11,664.95,0.30077449]
[1748978271227,1.12012818,665.35,664.95,0.30077449]
[1748978271228,1.12012818,665.34,664.95,0.30077449]
[1748978271428,0.98105989,665.33,665.24,0.47697092]
[1748978271631,0.98105989,665.32,665.24,0.47697092]
[1748978271927,0.98105989,665.31,665.24,0.47697092]
[1748978272128,0.98105989,665.3,665.22,0.47697092]
[1748978272329,1.12012818,665.34,665.25,0.47697092]
[1748978272330,0.98105989,665.29,665.25,0.47697092]
[1748978272530,0.98105989,665.28,665.25,0.47697092]
[1748978272732,0.98105989,665.27,664.95,0.30077449]
[1748978272934,0.98105989,665.26,664.95,0.30077449]
[1748978273135,1.12012818,665.33,664.95,0.30077449]
[1748978273136,0.98105989,665.25,664.95,0.77928547]
[1748978273333,0.98105989,665.24,664.95,0.77928547]
[1748978273540,1.49847911,665.44,664.95,0.77928547]
[1748978273836,1.12109452,665.32,665.29,0.47720821]
[1748978274041,0.98154924,665.31,665.29,0.47720821]
[1748978274334,0.98154924,665.3,665.29,0.47720821]
[1748978274535,0.98154924,665.3,664.95,0.30077449]
[1748978274738,0.98154924,665.29,664.95,0.30077449]
[1748978274939,0.98154924,665.28,664.95,0.30077449]
[1748978275134,0.98154924,665.27,664.95,0.30077449]
[1748978275334,0.98154924,665.26,664.95,0.30077449]
[1748978275539,0.98154924,665.25,664.95,0.30077449]
[1748978275740,0.98154924,665.24,664.95,0.30077449]
[1748978276043,1.12109452,665.3,664.95,0.30077449]
[1748978276044,0.98154924,665.23,664.95,0.30077449]
[1748978276337,0.98154924,665.22,664.95,0.30077449]
[1748978276537,0.98154924,665.21,664.95,0.30077449]
[1748978276742,0.98154924,665.2,664.95,0.30077449]
[1748978276936,1.12109452,665.29,664.95,0.30077449]
[1748978276937,0.98154924,665.19,664.95,0.30077449]
[1748978277240,0.98154924,665.18,664.95,0.30077449]
[1748978277439,1.12109452,665.29,664.95,0.30077449]
[1748978277440,0.98154924,665.17,664.95,0.30077449]
[1748978277637,0.98258718,665.16,664.95,0.30077449]
[1748978277834,0.98258718,665.15,664.95,0.30077449]
[1748978278033,0.98258718,665.14,664.95,0.30077449]
[1748978278241,0.98258718,665.13,664.95,0.30077449]
[1748978278437,0.98258718,665.12,664.95,0.30077449]
[1748978278638,0.98258718,665.11,664.95,0.30077449]
[1748978278840,1.12223764,665.32,665.0,0.47851098]
[1748978279041,0.98249856,665.31,665.01,0.30074735]
[1748978279243,0.98249856,665.3,665.01,0.30074735]
[1748978279546,0.98249856,665.29,665.01,0.30074735]
[1748978279848,0.98249856,665.28,665.01,0.30074735]
[1748978280048,0.98249856,665.27,665.01,0.30074735]
[1748978280349,0.98249856,665.26,665.01,0.30074735]
[1748978280551,0.98249856,665.25,665.23,0.47702181]
[1748978280854,0.98246053,665.24,665.23,0.47702181]
[1748978281845,0.98246053,665.24,665.22,0.47702181]
[1748978282049,0.98246053,665.23,665.22,0.47702181]
[1748978282746,0.98246053,665.23,665.01,0.30074735]
[1748978282747,0.98246053,665.23,665.21,0.47702181]
[1748978282956,0.98246053,665.22,665.21,0.47702181]
[1748978283852,0.98246053,665.22,665.18,0.47702181]
[1748978284046,0.98246053,665.21,665.18,0.47702181]
[1748978284248,0.98246053,665.2,665.18,0.47702181]
[1748978284448,0.98246053,665.19,665.01,0.30074735]
[1748978284748,0.98246053,665.18,665.01,0.30074735]
[1748978285052,0.98246053,665.17,665.01,0.30074735]
[1748978285252,0.98246053,665.16,665.01,0.30074735]
[1748978285553,0.98246053,665.15,665.01,0.30074735]
[1748978285752,0.98246053,665.14,665.01,0.30074735]
[1748978285949,1.12208823,665.37,665.01,0.30074735]
[1748978285950,0.98246053,665.13,665.01,0.30074735]
[1748978286147,0.98246053,665.12,665.01,0.30074735]
[1748978286453,1.12208823,665.37,665.01,0.30074735]
[1748978286652,0.98246176,665.36,665.19,0.47670729]
[1748978286851,0.98246176,665.35,665.19,0.47670729]
[1748978287052,0.98246176,665.34,665.19,0.47670729]
[1748978287353,0.98246176,665.33,665.18,0.47670729]
[1748978287647,0.98246176,665.32,665.18,0.47670729]
[1748978287847,0.98246176,665.31,665.18,0.47670729]
[1748978288046,0.98246176,665.3,665.18,0.47670729]
[1748978288248,0.98266205,665.29,665.19,0.47670729]
[1748978288456,0.98266205,665.28,665.18,0.47670729]
[1748978288656,0.98266205,665.27,665.19,0.47670729]
[1748978288858,0.98266205,665.26,665.19,0.47670729]
[1748978289059,0.98266205,665.25,665.19,0.47670729]
[1748978289253,0.98266205,665.24,665.19,0.47670729]
[1748978289559,0.98266205,665.23,665.19,0.47670729]
[1748978289759,0.98266205,665.22,665.2,0.47670729]
[1748978289957,1.12237876,665.37,665.21,0.47670729]
[1748978290158,2.10522694,665.36,665.24,0.47670729]
[1748978290359,1.49847911,665.49,665.01,0.30074735]
[1748978290360,1.12237876,665.34,665.28,0.47670729]
[1748978290555,0.98284818,665.33,665.28,0.47670729]
[1748978290757,0.98284818,665.32,665.28,0.47670729]
[1748978290956,0.98284818,665.31,665.26,0.47670729]
[1748978291154,0.98284818,665.3,665.27,0.47670729]
[1748978291358,0.98284818,665.29,665.26,0.47670729]
[1748978291560,0.98284818,665.28,665.26,0.47670729]
[1748978291758,0.98284818,665.27,665.26,0.47670729]
[1748978292158,1.49847911,665.51,665.26,0.47670729]
[1748978292358,1.1228742,665.37,665.26,0.47670729]
[1748978292659,0.98322579,665.36,665.26,0.47670729]
[1748978292855,0.98322579,665.35,665.26,0.47670729]
[1748978293056,0.98322579,665.34,665.25,0.47670729]
[1748978293256,0.98322579,665.34,665.01,0.30074735]
[1748978293257,0.98322579,665.33,665.26,0.47670729]
[1748978293457,0.98322579,665.32,665.29,0.47670729]
[1748978293656,0.98322579,665.31,665.29,0.47670729]
[1748978293863,0.98322579,665.3,665.01,0.30074735]
[1748978294058,0.98322579,665.29,665.01,0.30074735]
[1748978294259,0.98322579,665.28,665.01,0.30074735]
[1748978294456,0.98322579,665.27,665.01,0.30074735]
[1748978294659,0.98322579,665.26,665.01,0.30074735]
[1748978294859,0.98322579,665.25,665.01,0.30074735]
[1748978295061,0.98322579,665.24,665.01,0.30074735]
[1748978295358,0.98322579,665.23,665.01,0.30074735]
[1748978295562,0.98322579,665.22,665.01,0.30074735]
[1748978295765,0.98322579,665.21,665.01,0.30074735]
[1748978295961,1.49847911,665.51,665.01,0.30074735]
[1748978295962,0.98322579,665.2,665.01,0.30074735]
[1748978296162,0.98322579,665.19,665.01,0.30074735]
[1748978296363,0.98322579,665.18,665.01,0.30074735]
[1748978296564,0.98322579,665.17,665.01,0.30074735]
[1748978296763,0.98322579,665.16,665.01,0.30074735]
[1748978296963,1.1228742,665.38,665.01,0.30074735]
[1748978297165,0.98350545,665.37,665.35,0.47621725]
[1748978297464,0.98350545,665.36,665.34,0.47621725]
[1748978297763,0.98350545,665.35,665.34,0.47621725]
[1748978298265,0.98350545,665.35,665.01,0.30074735]
[1748978298466,0.98350545,665.34,665.01,0.30074735]
[1748978298661,0.98350545,665.33,665.01,0.30074735]
[1748978298864,0.98350545,665.32,665.01,0.30074735]
[1748978299058,0.98350545,665.31,665.01,0.30074735]
[1748978299261,0.98350545,665.3,665.25,0.47622015]
[1748978299564,0.98350545,665.29,665.25,0.47622015]
[1748978299765,0.98350545,665.28,665.25,0.47622015]
[1748978299965,0.98350545,665.27,665.26,0.47622015]
[1748978300159,0.98375369,665.27,665.26,0.47622015]
[1748978300866,0.98375369,665.27,665.01,0.30074735]
[1748978301064,0.98375369,665.26,665.01,0.30074735]
[1748978301265,0.98375369,665.25,665.01,0.30074735]
[1748978301465,0.98375369,665.24,665.01,0.30074735]
[1748978301663,0.98375369,665.23,665.01,0.30074735]
[1748978301862,0.98375369,665.22,665.01,0.30074735]
[1748978302062,0.98375369,665.21,665.01,0.30074735]
[1748978302367,1.12330818,665.39,665.01,0.30074735]
[1748978302368,0.98375369,665.2,665.01,0.30074735]
[1748978302569,0.98375369,665.19,665.01,0.30074735]
[1748978302868,0.98375369,665.18,665.01,0.30074735]
[1748978303071,0.98375369,665.17,665.01,0.30074735]
[1748978303368,0.98375369,665.16,665.01,0.30074735]
[1748978303564,1.12330818,665.4,665.01,0.30074735]
[1748978303764,0.98470352,665.39,665.27,0.47620678]
[1748978303963,0.98470353,665.38,665.27,0.47620678]
[1748978304164,0.98470353,665.37,665.27,0.47620678]
[1748978304364,0.98470353,665.36,665.27,0.47620678]
[1748978304568,0.98470353,665.35,665.27,0.47620678]
[1748978304769,0.98470353,665.34,665.27,0.47620678]
[1748978304969,0.98470353,665.33,665.27,0.47620678]
[1748978305265,0.98470353,665.32,665.29,0.47620678]
[1748978305470,0.98470353,665.31,665.3,0.47620678]
[1748978306072,0.98470353,665.31,665.01,0.30074735]
[1748978306267,0.98470353,665.3,665.01,0.30074735]
[1748978306472,0.98470353,665.29,665.01,0.30074735]
[1748978306673,0.98470353,665.28,665.01,0.30074735]
[1748978306972,0.98470353,665.27,665.01,0.30074735]
[1748978307171,0.98470353,665.26,665.01,0.30074735]
[1748978307373,0.98540246,665.25,665.01,0.30074735]
[1748978307572,1.12291218,665.41,665.01,0.30074735]
[1748978307573,0.98540246,665.24,665.01,0.30074735]
[1748978307773,0.98540246,665.23,665.01,0.30074735]
[1748978307966,0.98540246,665.22,665.01,0.30074735]
[1748978308172,0.98540246,665.21,665.01,0.30074735]
[1748978308372,0.98540246,665.2,665.01,0.30074735]
[1748978308669,0.98540246,665.19,665.01,0.30074735]
[1748978308870,3.747906,666.2,665.01,0.30074735]
[1748978308871,1.12291218,665.42,665.01,0.30074735]
[1748978309070,1.12291218,665.4,665.07,0.47851098]
[1748978309271,2.10828555,665.39,665.08,0.3007157]
[1748978309575,0.98537337,665.38,665.08,0.3007157]
[1748978309772,0.98537337,665.37,665.08,0.3007157]
[1748978310078,0.98537337,665.36,665.08,0.3007157]
[1748978310273,0.98537337,665.35,665.08,0.3007157]
[1748978310478,0.98537337,665.34,665.08,0.3007157]
[1748978310678,0.98537337,665.33,665.08,0.3007157]
[1748978310878,0.98537337,665.32,665.08,0.3007157]
[1748978311078,0.98537337,665.31,665.08,0.3007157]
[1748978311379,0.98537337,665.3,665.18,0.47634552]
[1748978311574,0.98537337,665.29,665.18,0.47634552]
[1748978311778,0.98537337,665.28,665.18,0.47634552]
[1748978311976,1.49847911,665.6,665.18,0.47634552]
[1748978312177,1.12284327,665.45,665.18,0.47634552]
[1748978312478,0.9855578,665.44,665.14,0.47634552]
[1748978312679,0.9855578,665.43,665.15,0.30068405]
[1748978312881,0.9855578,665.42,665.15,0.30068405]
[1748978313077,0.9855578,665.41,665.15,0.30068405]
[1748978313282,0.9855578,665.4,665.16,0.47634552]
[1748978313475,0.9855578,665.39,665.16,0.77702505]
[1748978313678,0.9855578,665.38,665.16,0.77702505]
[1748978313874,1.12284327,665.45,665.16,0.77702505]
[1748978313875,0.9855578,665.37,665.16,0.77702505]
[1748978314077,0.9855578,665.36,665.16,0.77702505]
[1748978314276,0.9855578,665.35,665.16,0.77702505]
[1748978314472,0.9855578,665.34,665.16,0.77702505]
[1748978314677,0.9855578,665.33,665.16,0.77702505]
[1748978314874,0.9855578,665.32,665.16,0.77702505]
[1748978315079,0.9855578,665.31,665.16,0.77702505]
[1748978315279,0.9855578,665.3,665.16,0.77702505]
[1748978315474,0.9855578,665.29,665.16,0.77702505]
[1748978315674,1.12284327,665.45,665.16,0.77702505]
[1748978315675,0.9855578,665.28,665.16,0.77702505]
[1748978315879,1.49712436,665.61,665.16,0.77702505]
[1748978316080,1.12291281,665.45,665.16,0.77702505]
[1748978316276,0.98560096,665.44,665.16,0.77702505]
[1748978316480,0.98560096,665.43,665.16,0.77702505]
[1748978316680,0.98560096,665.42,665.17,0.47634552]
[1748978316880,0.98560096,665.41,665.17,0.47634552]
[1748978317081,0.98560096,665.4,665.17,0.47634552]
[1748978317282,0.98560096,665.39,665.17,0.47634552]
[1748978317476,0.98560096,665.38,665.17,0.47634552]
[1748978317678,0.98560096,665.37,665.17,0.47634552]
[1748978317881,0.98560096,665.36,665.17,0.47634552]
[1748978318076,0.98560096,665.35,665.17,0.47634552]